fUSD/lending_fUSD_20250611
["ID","MTS","AMOUNT","RATE_DAILY","PERIOD"]
[365351559,1749615045359,-1145.32300851,0.0002,2]
[365351561,1749615045370,-663.7675664,0.0002,2]
[365351642,1749615235964,-253.92973114,0.00016025,2]
[365351643,1749615237548,-142.07026886,0.00016025,2]
[365351644,1749615282973,150.0,0.00016003,2]
[365351650,1749615672851,156.4,0.00013699,2]
[365351653,1749615730723,3322.97,0.00016,2]
[365351654,1749615730744,3655.53732396,0.00016,2]
[365351656,1749615815333,-250.0,0.00016007,2]
[365351657,1749615817430,-212.831348,0.00016007,2]
[365351658,1749615891142,-177.80822872,0.00016007,2]
[365351659,1749615893302,-153.70115456,0.00016007,2]
[365351660,1749615895608,-135.36455472,0.00016007,2]
[365351661,1749615934104,-1049.59603483,0.00016088,2]
[365351662,1749615938896,150.0,0.00015791,2]
[365351663,1749615948661,194.46267604,0.00015791,2]
[365351664,1749615948683,5.53732396,0.00015791,2]
[365351665,1749615969429,-209.2414494,0.00016007,2]
[365351666,1749615974728,-266.63957086,0.00016007,2]
[365351667,1749615977783,-133.65886774,0.00016007,2]
[365351674,1749616041094,-228.21396517,0.00016088,2]
[365351675,1749616041114,-250.0,0.00016088,2]
[365351676,1749616041135,-168.66,0.00016129,2]
[365351677,1749616041156,-163.08844398,0.00016138,2]
[365351678,1749616041177,-507.36094867,0.00016164,2]
[365351679,1749616041198,-162.371147,0.00016238,2]
[365351680,1749616041218,-226.038701,0.00016337,2]
[365351681,1749616044090,-472.03281544,0.00016007,2]
[365351682,1749616044123,-203.76515372,0.00016007,2]
[365351683,1749616045864,-41.00959784,0.00016007,2]
[365351684,1749616054134,-73.961299,0.00016337,2]
[365351685,1749616054157,-1200.0,0.00016337,2]
[365351686,1749616054179,-300.0,0.00016337,2]
[365351687,1749616054201,-658.3371212,0.00016338,2]
[365351688,1749616054223,-163.07871679,0.00016338,2]
[365351689,1749616054245,-1534.11677326,0.00016338,2]
[365351690,1749616054267,-6756.7046,0.00016338,2]
[365351691,1749616054288,-227.8361,0.00016338,2]
[365351692,1749616054309,-271.9607,0.00016338,2]
[365351693,1749616054331,-2514.21434285,0.00016344,2]
[365351696,1749616123303,3994.46267604,0.00016,2]
[365351697,1749616123327,4000.0,0.00016,2]
[365351698,1749616123350,4000.0,0.00016,2]
[365351699,1749616123377,893.53732396,0.00016,2]
[365351718,1749616168118,-186.56177386,0.00016256,2]
[365351732,1749616199732,967.59,0.00015791,2]
[365351752,1749616231466,-17.20338014,0.00016256,2]
[365351754,1749616231477,-658.3371212,0.00016338,2]
[365351757,1749616231500,-1200.0,0.00016343,2]
[365351758,1749616231511,-19648.70080247,0.00016344,2]
[365351759,1749616231521,-150.0,0.00016422,7]
[365351760,1749616231532,-370.24269282,0.00016428,2]
[365351761,1749616231542,-207.55,0.00016428,2]
[365351762,1749616231552,-207.55,0.00016428,2]
[365351763,1749616231562,-1311.9,0.00016428,2]
[365351764,1749616231571,-151.0,0.00016428,2]
[365351765,1749616231581,-151.0,0.00016428,2]
[365351766,1749616231591,-151.0,0.00016428,2]
[365351767,1749616231601,-151.0,0.00016428,2]
[365351768,1749616231610,-151.0,0.00016428,2]
[365351769,1749616231620,-151.0,0.00016428,2]
[365351770,1749616231631,-151.0,0.00016428,2]
[365351771,1749616231641,-151.0,0.00016428,2]
[365351772,1749616231650,-151.0,0.00016428,2]
[365351773,1749616231659,-151.0,0.00016428,2]
[365351774,1749616231670,-151.0,0.00016428,2]
[365351775,1749616231680,-161.61531965,0.00016428,2]
[365351776,1749616231690,-324.40475698,0.00016437,2]
[365351777,1749616231699,-251.77247731,0.00016437,2]
[365351778,1749616231709,-414.58724109,0.00016437,2]
[365351779,1749616231718,-401.14292246,0.00016437,2]
[365351780,1749616231728,-310.8302189,0.00016437,2]
[365351781,1749616231738,-413.0,0.00016437,2]
[365351782,1749616231747,-480.0,0.00016438,2]
[365351783,1749616231757,-480.0,0.00016438,2]
[365351784,1749616231767,-480.0,0.00016438,2]
[365351785,1749616231777,-480.0,0.00016438,2]
[365351786,1749616231788,-480.0,0.00016438,2]
[365351787,1749616231797,-480.0,0.00016438,2]
[365351788,1749616231807,-480.0,0.00016438,2]
[365351789,1749616231816,-480.0,0.00016438,2]
[365351790,1749616231825,-328.73,0.00016438,2]
[365351791,1749616231835,-338.39971309,0.00016438,2]
[365351792,1749616231847,-141.60028691,0.00016438,2]
[365351793,1749616231856,-480.0,0.00016438,2]
[365351794,1749616231866,-480.0,0.00016438,2]
[365351795,1749616231875,-23.31130009,0.00016438,2]
[365351796,1749616231887,-456.68869991,0.00016438,2]
[365351797,1749616231896,-480.0,0.00016438,2]
[365351798,1749616231906,-480.0,0.00016438,2]
[365351799,1749616231915,-480.0,0.00016438,2]
[365351800,1749616231924,-480.0,0.00016438,2]
[365351801,1749616231933,-25.50782373,0.00016438,2]
[365351802,1749616231946,-454.49217627,0.00016438,2]
[365351803,1749616231956,-480.0,0.00016438,2]
[365351804,1749616231965,-480.0,0.00016438,2]
[365351805,1749616231974,-480.0,0.00016438,2]
[365351806,1749616231983,-480.0,0.00016438,2]
[365351807,1749616231992,-368.11470429,0.00016438,2]
[365351808,1749616232002,-420.0,0.00016438,2]
[365351809,1749616232012,-480.0,0.00016438,2]
[365351810,1749616232021,-480.0,0.00016438,2]
[365351811,1749616232031,-480.0,0.00016438,2]
[365351812,1749616232042,-480.0,0.00016438,2]
[365351813,1749616232052,-480.0,0.00016438,2]
[365351814,1749616232062,-480.0,0.00016438,2]
[365351815,1749616232071,-480.0,0.00016438,2]
[365351816,1749616232081,-480.0,0.00016438,2]
[365351817,1749616232090,-480.0,0.00016438,2]
[365351820,1749616232099,-480.0,0.00016438,2]
[365351823,1749616232108,-480.0,0.00016438,2]
[365351826,1749616232118,-486.07163043,0.00016438,2]
[365351827,1749616232127,-480.0,0.00016438,2]
[365351828,1749616232137,-480.0,0.00016438,2]
[365351829,1749616232146,-480.0,0.00016438,2]
[365351830,1749616232155,-480.0,0.00016438,2]
[365351831,1749616232164,-485.5532315,0.00016438,2]
[365351832,1749616232173,-433.31296883,0.00016438,2]
[365351833,1749616232183,-480.0,0.00016438,2]
[365351834,1749616232192,-480.0,0.00016438,2]
[365351835,1749616232202,-480.0,0.00016438,2]
[365351836,1749616232211,-480.0,0.00016438,2]
[365351837,1749616232221,-437.99328031,0.00016438,2]
[365351838,1749616232231,-485.03728764,0.00016438,2]
[365351839,1749616232461,-420.0,0.00016438,2]
[365351840,1749616232475,-421.84602715,0.00016438,2]
[365351841,1749616232485,-480.0,0.00016438,2]
[365351842,1749616232495,-480.0,0.00016438,2]
[365351843,1749616232504,-487.64,0.00016438,2]
[365351844,1749616232514,-480.0,0.00016438,2]
[365351845,1749616232523,-484.45878822,0.00016438,2]
[365351846,1749616232533,-484.37846615,0.00016438,2]
[365351847,1749616232545,-480.0,0.00016438,2]
[365351848,1749616232554,-423.66626354,0.00016438,2]
[365351849,1749616232564,-420.0,0.00016438,2]
[365351850,1749616232573,-480.0,0.00016438,2]
[365351851,1749616232583,-484.83593169,0.00016438,2]
[365351852,1749616232593,-480.0,0.00016438,2]
[365351853,1749616232602,-480.0,0.00016438,2]
[365351854,1749616232612,-480.0,0.00016438,2]
[365351855,1749616232621,-480.0,0.00016438,2]
[365351856,1749616232631,-480.0,0.00016438,2]
[365351857,1749616232641,-480.0,0.00016438,2]
[365351858,1749616232650,-480.0,0.00016438,2]
[365351859,1749616232664,-480.0,0.00016438,2]
[365351860,1749616232674,-480.0,0.00016438,2]
[365351861,1749616232683,-573.459594,0.00016438,2]
[365351862,1749616232693,-480.0,0.00016438,2]
[365351863,1749616232703,-420.0,0.00016438,2]
[365351864,1749616232713,-480.0,0.00016438,2]
[365351865,1749616232723,-627.03342021,0.00016438,2]
[365351866,1749616232732,-217.5,0.00016438,2]
[365351867,1749616232742,-480.0,0.00016438,2]
[365351868,1749616232754,-480.0,0.00016438,2]
[365351869,1749616232763,-480.0,0.00016438,2]
[365351870,1749616232772,-480.0,0.00016438,2]
[365351871,1749616232783,-480.0,0.00016438,2]
[365351872,1749616232793,-480.0,0.00016438,2]
[365351873,1749616232804,-128.1330708,0.00016438,2]
[365351874,1749616233041,-351.8669292,0.00016438,2]
[365351875,1749616233051,-480.0,0.00016438,2]
[365351876,1749616233060,-520.13316849,0.00016438,2]
[365351877,1749616233071,-480.0,0.00016438,2]
[365351878,1749616233081,-480.0,0.00016438,2]
[365351879,1749616233091,-480.0,0.00016438,2]
[365351880,1749616233100,-480.0,0.00016438,2]
[365351881,1749616233111,-480.0,0.00016438,2]
[365351882,1749616233121,-480.0,0.00016438,2]
[365351883,1749616233131,-480.0,0.00016438,2]
[365351884,1749616233140,-480.0,0.00016438,2]
[365351885,1749616233150,-555.24980076,0.00016438,2]
[365351886,1749616233160,-480.0,0.00016438,2]
[365351887,1749616233169,-480.0,0.00016438,2]
[365351888,1749616233179,-310.06667555,0.00016438,2]
[365351889,1749616233189,-376.15092278,0.00016438,2]
[365351890,1749616233199,-269.31276204,0.00016438,2]
[365351891,1749616233209,-263.78314867,0.00016438,2]
[365351892,1749616233219,-528.23623394,0.00016438,2]
[365351893,1749616233229,-460.0,0.00016438,2]
[365351894,1749616233239,-460.0,0.00016438,2]
[365351895,1749616233249,-490.0,0.00016438,2]
[365351896,1749616233259,-460.0,0.00016438,2]
[365351897,1749616233269,-460.0,0.00016438,2]
[365351898,1749616233279,-460.0,0.00016438,2]
[365351899,1749616233288,-460.0,0.00016438,2]
[365351900,1749616233298,-600.72140138,0.00016438,2]
[365351901,1749616233307,-480.0,0.00016438,2]
[365351902,1749616233317,-460.0,0.00016438,2]
[365351903,1749616233326,-460.0,0.00016438,2]
[365351904,1749616233336,-352.30203565,0.00016438,2]
[365351905,1749616233345,-460.0,0.00016438,2]
[365351906,1749616233355,-480.0,0.00016438,2]
[365351907,1749616233364,-460.0,0.00016438,2]
[365351908,1749616233374,-460.0,0.00016438,2]
[365351909,1749616233383,-460.0,0.00016438,2]
[365351910,1749616233397,-490.0,0.00016438,2]
[365351911,1749616233406,-480.0,0.00016438,2]
[365351912,1749616233415,-460.0,0.00016438,2]
[365351913,1749616233425,-490.0,0.00016438,2]
[365351914,1749616233435,-460.0,0.00016438,2]
[365351915,1749616233445,-1000.0,0.00016438,2]
[365351916,1749616233455,-460.0,0.00016438,2]
[365351917,1749616233465,-460.0,0.00016438,2]
[365351918,1749616233476,-460.0,0.00016438,2]
[365351919,1749616233486,-490.0,0.00016438,2]
[365351920,1749616233495,-490.0,0.00016438,2]
[365351921,1749616233506,-490.0,0.00016438,2]
[365351922,1749616233516,-490.0,0.00016438,2]
[365351923,1749616233525,-606.28908294,0.00016438,2]
[365351924,1749616233535,-490.0,0.00016438,2]
[365351925,1749616233545,-460.0,0.00016438,2]
[365351926,1749616233555,-460.0,0.00016438,2]
[365351927,1749616233564,-460.0,0.00016438,2]
[365351928,1749616233573,-490.0,0.00016438,2]
[365351929,1749616233583,-460.0,0.00016438,2]
[365351930,1749616233592,-490.0,0.00016438,2]
[365351931,1749616233602,-618.01,0.00016438,2]
[365351932,1749616233611,-490.0,0.00016438,2]
[365351933,1749616233621,-460.0,0.00016438,2]
[365351934,1749616233630,-554.48,0.00016438,2]
[365351935,1749616233639,-285.9674514,0.00016438,2]
[365351936,1749616233649,-480.0,0.00016438,2]
[365351937,1749616233658,-490.0,0.00016438,2]
[365351938,1749616233672,-460.0,0.00016438,2]
[365351939,1749616233682,-503.52352426,0.00016438,2]
[365351940,1749616233692,-420.0,0.00016438,2]
[365351941,1749616233702,-460.0,0.00016438,2]
[365351942,1749616233711,-480.0,0.00016438,2]
[365351943,1749616233721,-439.26389273,0.00016438,2]
[365351944,1749616233731,-110.72855799,0.00016438,2]
[365351945,1749616233745,-356.9785486,0.00016438,2]
[365351946,1749616233755,-460.0,0.00016438,2]
[365351947,1749616233764,-460.0,0.00016438,2]
[365351948,1749616233774,-490.0,0.00016438,2]
[365351949,1749616233784,-460.0,0.00016438,2]
[365351950,1749616233794,-490.0,0.00016438,2]
[365351951,1749616233804,-480.0,0.00016438,2]
[365351952,1749616233814,-460.0,0.00016438,2]
[365351953,1749616233824,-490.0,0.00016438,2]
[365351954,1749616233834,-475.43303837,0.00016438,2]
[365351955,1749616233845,-460.0,0.00016438,2]
[365351956,1749616233855,-460.0,0.00016438,2]
[365351957,1749616233865,-545.7,0.00016438,2]
[365351958,1749616233875,-460.0,0.00016438,2]
[365351959,1749616233885,-479.16578137,0.00016438,2]
[365351960,1749616233895,-460.0,0.00016438,2]
[365351961,1749616233905,-257.69855493,0.00016438,2]
[365351962,1749616233915,-460.0,0.00016438,2]
[365351963,1749616233924,-481.02,0.00016438,2]
[365351964,1749616233934,-471.6653061,0.00016438,2]
[365351965,1749616233943,-447.23883063,0.00016438,2]
[365351966,1749616233953,-470.490471,0.00016438,2]
[365351967,1749616233963,-295.30707805,0.00016438,2]
[365351968,1749616233973,-463.94902231,0.00016438,2]
[365351969,1749616233982,-601.24171605,0.00016438,2]
[365351970,1749616233993,-490.0,0.00016438,2]
[365351971,1749616234003,-490.0,0.00016438,2]
[365351972,1749616234012,-480.71147745,0.00016438,2]
[365351973,1749616234022,-460.0,0.00016438,2]
[365351974,1749616234031,-480.0,0.00016438,2]
[365351975,1749616234041,-460.0,0.00016438,2]
[365351976,1749616234051,-490.0,0.00016438,2]
[365351977,1749616234061,-490.35856359,0.00016438,2]
[365351978,1749616234071,-480.0,0.00016438,2]
[365351979,1749616234081,-460.0,0.00016438,2]
[365351980,1749616234090,-490.0,0.00016438,2]
[365351981,1749616234100,-490.0,0.00016438,2]
[365351982,1749616234109,-490.0,0.00016438,2]
[365351983,1749616234119,-480.0,0.00016438,2]
[365351984,1749616234128,-490.0,0.00016438,2]
[365351985,1749616234138,-579.02,0.00016438,2]
[365351986,1749616234147,-478.4712659,0.00016438,2]
[365351987,1749616234158,-490.0,0.00016438,2]
[365351988,1749616234167,-480.0,0.00016438,2]
[365351989,1749616234177,-480.0,0.00016438,2]
[365351990,1749616234186,-475.30065234,0.00016438,2]
[365351991,1749616234196,-460.0,0.00016438,2]
[365351992,1749616234207,-480.0,0.00016438,2]
[365351993,1749616234216,-460.0,0.00016438,2]
[365351994,1749616234226,-460.0,0.00016438,2]
[365351995,1749616234236,-460.0,0.00016438,2]
[365351996,1749616234246,-490.0,0.00016438,2]
[365351997,1749616234257,-480.0,0.00016438,2]
[365351998,1749616234268,-464.75755043,0.00016438,2]
[365351999,1749616234278,-481.60700422,0.00016438,2]
[365352000,1749616234290,-524.82814026,0.00016438,2]
[365352001,1749616234301,-607.48049686,0.00016438,2]
[365352002,1749616234311,-490.0,0.00016438,2]
[365352003,1749616234321,-478.79244015,0.00016438,2]
[365352004,1749616234331,-321.04681876,0.00016438,2]
[365352005,1749616234341,-477.39396858,0.00016438,2]
[365352006,1749616234351,-488.44,0.00016438,2]
[365352007,1749616234362,-490.0,0.00016438,2]
[365352008,1749616234372,-480.0,0.00016438,2]
[365352009,1749616234382,-480.0,0.00016438,2]
[365352010,1749616234394,-490.0,0.00016438,2]
[365352011,1749616234404,-322.90219193,0.00016438,2]
[365352012,1749616234414,-480.0,0.00016438,2]
[365352013,1749616234424,-516.07,0.00016438,2]
[365352014,1749616234435,-460.0,0.00016438,2]
[365352015,1749616234444,-480.0,0.00016438,2]
[365352016,1749616234455,-480.0,0.00016438,2]
[365352017,1749616234464,-460.0,0.00016438,2]
[365352018,1749616234475,-480.0,0.00016438,2]
[365352019,1749616234485,-480.0,0.00016438,2]
[365352020,1749616234496,-639.1,0.00016438,2]
[365352021,1749616234506,-460.0,0.00016438,2]
[365352022,1749616234516,-541.26,0.00016438,2]
[365352023,1749616234527,-480.0,0.00016438,2]
[365352024,1749616234537,-460.0,0.00016438,2]
[365352025,1749616234546,-480.0,0.00016438,2]
[365352026,1749616234556,-460.0,0.00016438,2]
[365352027,1749616234566,-305.42892573,0.00016438,2]
[365352028,1749616234576,-480.0,0.00016438,2]
[365352029,1749616234586,-533.92,0.00016438,2]
[365352030,1749616234596,-460.0,0.00016438,2]
[365352031,1749616234606,-480.0,0.00016438,2]
[365352032,1749616234615,-480.0,0.00016438,2]
[365352033,1749616234625,-490.0,0.00016438,2]
[365352034,1749616234634,-480.0,0.00016438,2]
[365352035,1749616234644,-460.0,0.00016438,2]
[365352036,1749616234655,-480.0,0.00016438,2]
[365352037,1749616234664,-480.0,0.00016438,2]
[365352038,1749616234674,-460.0,0.00016438,2]
[365352039,1749616234684,-490.0,0.00016438,2]
[365352041,1749616234693,-460.0,0.00016438,2]
[365352042,1749616234702,-533.53,0.00016438,2]
[365352043,1749616234712,-480.0,0.00016438,2]
[365352044,1749616234722,-423.83971482,0.00016438,2]
[365352045,1749616234731,-480.0,0.00016438,2]
[365352046,1749616234741,-490.0,0.00016438,2]
[365352047,1749616234750,-460.0,0.00016438,2]
[365352048,1749616234763,-480.0,0.00016438,2]
[365352049,1749616234774,-612.66,0.00016438,2]
[365352050,1749616234783,-490.0,0.00016438,2]
[365352051,1749616234792,-501.7,0.00016438,2]
[365352052,1749616234802,-490.0,0.00016438,2]
[365352053,1749616234811,-460.0,0.00016438,2]
[365352054,1749616234821,-480.0,0.00016438,2]
[365352055,1749616234831,-480.0,0.00016438,2]
[365352056,1749616234840,-490.0,0.00016438,2]
[365352057,1749616234850,-609.33,0.00016438,2]
[365352058,1749616234859,-490.0,0.00016438,2]
[365352059,1749616234868,-546.28002858,0.00016438,2]
[365352060,1749616234878,-482.78093418,0.00016438,2]
[365352061,1749616234888,-495.49,0.00016438,2]
[365352062,1749616234897,-480.0,0.00016438,2]
[365352063,1749616234907,-480.0,0.00016438,2]
[365352064,1749616234916,-480.0,0.00016438,2]
[365352065,1749616234926,-490.0,0.00016438,2]
[365352066,1749616234935,-481.85011636,0.00016438,2]
[365352067,1749616234945,-480.0,0.00016438,2]
[365352068,1749616234954,-191.10631347,0.00016438,2]
[365352069,1749616234963,-460.0,0.00016438,2]
[365352070,1749616234973,-480.0,0.00016438,2]
[365352071,1749616234983,-460.0,0.00016438,2]
[365352072,1749616234993,-480.0,0.00016438,2]
[365352073,1749616235002,-480.0,0.00016438,2]
[365352074,1749616235012,-481.60060573,0.00016438,2]
[365352075,1749616235022,-480.0,0.00016438,2]
[365352076,1749616235031,-480.0,0.00016438,2]
[365352077,1749616235041,-480.0,0.00016438,2]
[365352078,1749616235051,-480.0,0.00016438,2]
[365352079,1749616235060,-477.66036423,0.00016438,2]
[365352080,1749616235070,-490.0,0.00016438,2]
[365352081,1749616235080,-482.12730021,0.00016438,2]
[365352082,1749616235089,-460.0,0.00016438,2]
[365352083,1749616235098,-480.0,0.00016438,2]
[365352084,1749616235108,-480.0,0.00016438,2]
[365352085,1749616235117,-480.0,0.00016438,2]
[365352086,1749616235126,-490.0,0.00016438,2]
[365352087,1749616235138,-480.0,0.00016438,2]
[365352088,1749616235148,-480.0,0.00016438,2]
[365352089,1749616235157,-363.85400182,0.00016438,2]
[365352090,1749616235167,-480.0,0.00016438,2]
[365352091,1749616235176,-352.35352359,0.00016438,2]
[365352092,1749616235185,-361.81808813,0.00016438,2]
[365352093,1749616235194,-480.0,0.00016438,2]
[365352094,1749616235204,-460.0,0.00016438,2]
[365352095,1749616235214,-357.80617361,0.00016438,2]
[365352096,1749616235224,-480.0,0.00016438,2]
[365352097,1749616235233,-466.62931697,0.00016438,2]
[365352098,1749616235242,-480.0,0.00016438,2]
[365352099,1749616235251,-586.54,0.00016438,2]
[365352100,1749616235261,-480.0,0.00016438,2]
[365352101,1749616235270,-460.0,0.00016438,2]
[365352102,1749616235280,-480.0,0.00016438,2]
[365352103,1749616235290,-480.0,0.00016438,2]
[365352104,1749616235299,-490.0,0.00016438,2]
[365352105,1749616235309,-480.0,0.00016438,2]
[365352106,1749616235318,-480.0,0.00016438,2]
[365352107,1749616235328,-330.0,0.00016438,2]
[365352108,1749616235338,-480.0,0.00016438,2]
[365352109,1749616235347,-460.0,0.00016438,2]
[365352110,1749616235356,-480.0,0.00016438,2]
[365352111,1749616235366,-256.4,0.00016438,2]
[365352112,1749616235375,-490.0,0.00016438,2]
[365352113,1749616235384,-480.0,0.00016438,2]
[365352114,1749616235397,-472.41921846,0.00016438,2]
[365352115,1749616235406,-480.0,0.00016438,2]
[365352116,1749616235415,-490.0,0.00016438,2]
[365352117,1749616235424,-490.0,0.00016438,2]
[365352118,1749616235434,-480.0,0.00016438,2]
[365352119,1749616235443,-460.0,0.00016438,2]
[365352120,1749616235453,-460.0,0.00016438,2]
[365352121,1749616235463,-507.21,0.00016438,2]
[365352122,1749616235473,-460.0,0.00016438,2]
[365352123,1749616235482,-490.0,0.00016438,2]
[365352124,1749616235491,-460.0,0.00016438,2]
[365352125,1749616235501,-460.0,0.00016438,2]
[365352126,1749616235511,-570.18384747,0.00016438,2]
[365352127,1749616235520,-480.0,0.00016438,2]
[365352128,1749616235529,-330.0,0.00016438,2]
[365352129,1749616235540,-490.0,0.00016438,2]
[365352130,1749616235550,-460.0,0.00016438,2]
[365352131,1749616235559,-635.46,0.00016438,2]
[365352132,1749616235569,-330.0,0.00016438,2]
[365352133,1749616235579,-490.0,0.00016438,2]
[365352134,1749616235589,-460.0,0.00016438,2]
[365352135,1749616235598,-460.0,0.00016438,2]
[365352136,1749616235607,-490.0,0.00016438,2]
[365352137,1749616235616,-454.74,0.00016438,2]
[365352138,1749616235626,-460.0,0.00016438,2]
[365352139,1749616235642,-460.0,0.00016438,2]
[365352140,1749616235652,-340.0,0.00016438,2]
[365352141,1749616235661,-460.0,0.00016438,2]
[365352142,1749616235670,-480.0,0.00016438,2]
[365352143,1749616235680,-340.0,0.00016438,2]
[365352144,1749616235689,-340.0,0.00016438,2]
[365352145,1749616235698,-490.0,0.00016438,2]
[365352146,1749616235707,-490.0,0.00016438,2]
[365352147,1749616235716,-490.0,0.00016438,2]
[365352148,1749616235726,-183.91194257,0.00016438,2]
[365352149,1749616235735,-570.4,0.00016438,2]
[365352150,1749616235744,-490.0,0.00016438,2]
[365352151,1749616235753,-460.0,0.00016438,2]
[365352152,1749616235762,-490.0,0.00016438,2]
[365352153,1749616235771,-460.0,0.00016438,2]
[365352154,1749616235781,-460.0,0.00016438,2]
[365352155,1749616235790,-490.0,0.00016438,2]
[365352156,1749616235800,-422.45188984,0.00016438,2]
[365352157,1749616235809,-431.00894696,0.00016438,2]
[365352158,1749616235818,-490.0,0.00016438,2]
[365352159,1749616235827,-460.0,0.00016438,2]
[365352160,1749616235836,-182.73,0.00016438,2]
[365352161,1749616235846,-342.06,0.00016438,2]
[365352162,1749616235855,-490.0,0.00016438,2]
[365352163,1749616235864,-490.0,0.00016438,2]
[365352164,1749616235873,-490.0,0.00016438,2]
[365352165,1749616235882,-490.0,0.00016438,2]
[365352166,1749616235891,-460.0,0.00016438,2]
[365352167,1749616235900,-490.0,0.00016438,2]
[365352168,1749616235910,-480.0,0.00016438,2]
[365352169,1749616235919,-490.0,0.00016438,2]
[365352170,1749616235928,-490.0,0.00016438,2]
[365352171,1749616235938,-534.05,0.00016438,2]
[365352172,1749616235947,-490.0,0.00016438,2]
[365352173,1749616235957,-480.0,0.00016438,2]
[365352174,1749616235966,-490.0,0.00016438,2]
[365352175,1749616235976,-490.0,0.00016438,2]
[365352176,1749616235984,-601.05,0.00016438,2]
[365352177,1749616235994,-480.0,0.00016438,2]
[365352178,1749616236003,-490.0,0.00016438,2]
[365352179,1749616236020,-495.27,0.00016438,2]
[365352180,1749616236033,-490.0,0.00016438,2]
[365352181,1749616236043,-490.0,0.00016438,2]
[365352182,1749616236053,-490.0,0.00016438,2]
[365352183,1749616236062,-525.01628606,0.00016438,2]
[365352184,1749616236071,-490.0,0.00016438,2]
[365352185,1749616236082,-490.0,0.00016438,2]
[365352186,1749616236091,-490.0,0.00016438,2]
[365352187,1749616236100,-108.04965476,0.00016438,2]
[365352188,1749616236118,-371.95034524,0.00016438,2]
[365352189,1749616236128,-150.50104693,0.00016438,2]
[365352191,1749616236144,-311.88590251,0.00016438,2]
[365352192,1749616236156,-27.61305056,0.00016438,2]
[365352193,1749616236166,-490.0,0.00016438,2]
[365352194,1749616236176,-490.0,0.00016438,2]
[365352195,1749616236186,-490.0,0.00016438,2]
[365352196,1749616236196,-490.0,0.00016438,2]
[365352197,1749616236205,-490.0,0.00016438,2]
[365352198,1749616236216,-490.0,0.00016438,2]
[365352199,1749616236227,-500.0,0.00016438,2]
[365352200,1749616236237,-490.0,0.00016438,2]
[365352201,1749616236246,-50.98830798,0.00016438,2]
[365352202,1749616236258,-409.01169202,0.00016438,2]
[365352203,1749616236267,-169.65639028,0.00016438,2]
[365352204,1749616236283,-320.34360972,0.00016438,2]
[365352205,1749616236294,-480.0,0.00016438,2]
[365352206,1749616236303,-490.0,0.00016438,2]
[365352207,1749616236313,-460.0,0.00016438,2]
[365352208,1749616236322,-490.0,0.00016438,2]
[365352209,1749616236332,-480.0,0.00016438,2]
[365352210,1749616236341,-460.0,0.00016438,2]
[365352211,1749616236353,-608.22,0.00016438,2]
[365352212,1749616236362,-490.0,0.00016438,2]
[365352213,1749616236372,-460.0,0.00016438,2]
[365352214,1749616236381,-517.33531958,0.00016438,2]
[365352215,1749616236392,-460.0,0.00016438,2]
[365352216,1749616236403,-450.94695074,0.00016438,2]